bitfinex/quotes_ETHUSD_20230702
["timestamp","ask_amount","ask_price","bid_price","bid_amount"]
[1688314739625,11.618474,1924.9,1924.3,15.67924184]
[1688314740032,0.00296722,1924.8,1924.3,15.67924184]
[1688314740190,5.19837722,1924.8,1924.3,12.99172]
[1688314740390,14.88245722,1924.8,1924.3,5.19669]
[1688314740634,14.88245722,1924.8,1924.3,10.39338]
[1688314740828,6.68390572,1924.7,1924.3,10.39338]
[1688314741033,7.08937722,1924.8,1924.3,12.99172]
[1688314741197,0.00296722,1924.8,1924.3,12.99172]
[1688314741403,5.19833722,1924.8,1924.3,12.99172]
[1688314741993,10.39370722,1924.8,1924.3,12.99172]
[1688314742197,2.68752184,1924.7,1923.7,2.59915]
[1688314742400,2.68752184,1924.7,1923.5,7.478]
[1688314742401,0.01716833,1924.2,1923.9,5.19776]
[1688314742624,5.19709,1924.2,1923.9,10.39553]
[1688314743018,0.00289628,1924.1,1923.9,5.19776]
[1688314743286,5.20014628,1924.1,1923.8,5.19791]
[1688314743460,0.52001463,1924.0,1923.6,5.19847]
[1688314743591,5.19768,1924.0,1923.6,10.39705]
[1688314743796,0.00289628,1924.1,1923.6,12.99634]
[1688314743995,7.48221,1924.4,1923.6,12.99634]
[1688314743996,0.00287903,1923.9,1923.7,2.68752184]
[1688314744305,0.00287903,1923.9,1923.6,10.39705]
[1688314744491,0.00287903,1923.9,1923.6,12.99634]
[1688314744692,0.00287903,1923.9,1923.6,10.39705]
[1688314744933,5.19757,1924.0,1923.6,10.39705]
[1688314745412,15.924387,1924.0,1923.3,2.0]
[1688314745592,14.88489,1924.0,1923.4,10.39792]
[1688314746140,0.00287903,1923.9,1923.4,10.39792]
[1688314746302,10.39636,1923.8,1923.4,10.39792]
[1688314746503,5.20078903,1923.9,1923.4,10.39792]
[1688314746846,6.16984493,1923.9,1923.4,10.39792]
[1688314747226,6.16984493,1923.9,1923.4,12.99748]
[1688314747664,0.00287903,1923.9,1923.5,2.68752184]
[1688314747874,0.0201961,1923.8,1923.6,12.99632]
[1688314748236,0.0201961,1923.8,1923.7,2.68752184]
[1688314748442,0.00287903,1923.9,1923.7,15.68329184]
[1688314748673,0.00287903,1923.9,1923.8,2.0]
[1688314748835,0.00287903,1923.9,1923.8,23.92486076]
[1688314749041,0.02393334,1924.3,1923.8,23.92486076]
[1688314749353,0.02485756,1924.5,1924.0,12.99362]
[1688314749681,5.1967,1924.3,1924.0,10.3949]
[1688314749964,0.01676379,1924.2,1924.0,10.39495]
[1688314750127,5.1967,1924.3,1924.0,10.39495]
[1688314750806,5.1967,1924.3,1924.0,5.19745]
[1688314751073,0.00280288,1924.2,1924.0,5.1975]
[1688314751274,5.19986288,1924.2,1923.9,10.39527]
[1688314751478,10.39692288,1924.2,1923.9,10.39523]
[1688314751780,0.00280288,1924.2,1923.9,12.99411]
[1688314751938,0.00280288,1924.2,1923.9,15.68163184]
[1688314752276,0.00280288,1924.2,1924.0,4.68752184]
[1688314752474,0.00280288,1924.2,1924.1,16.07168]
[1688314752771,0.00280288,1924.2,1924.1,12.99307]
[1688314753083,5.19652,1924.4,1924.1,10.39446]
[1688314753379,5.19652,1924.4,1924.1,5.19723]
[1688314753688,5.19616,1924.5,1924.1,10.39446]
[1688314753830,3.8776,1924.8,1924.1,12.99307]
[1688314753831,5.19603,1924.6,1924.1,12.99307]
[1688314754033,0.00284198,1924.3,1924.1,12.99307]
[1688314754683,0.00284198,1924.3,1924.2,4.68752184]
[1688314755188,0.02083715,1924.8,1924.2,17.67992184]
[1688314755483,38.75519,1924.9,1924.2,17.67992184]
[1688314755786,35.75515,1924.9,1924.5,12.99004]
[1688314756000,5.19494,1925.0,1924.5,12.99004]
[1688314756001,0.00287967,1924.8,1924.5,12.99004]
[1688314756594,13.51126764,1924.8,1923.9,2.59881]
[1688314756892,10.39248,1924.5,1924.1,12.39429]
[1688314757092,12.99055,1924.5,1924.1,5.19706]
[1688314758053,5.19669,1924.3,1924.1,5.19706]
[1688314758248,5.19939142,1924.4,1924.1,10.39429]
[1688314758443,0.00286142,1924.4,1924.1,12.9929]
[1688314759096,7.00055,1924.8,1924.3,12.99117]
[1688314759257,16.144115,1924.8,1924.3,12.99117]
[1688314759659,10.948635,1924.8,1924.3,12.99117]
[1688314759859,40.27305,1924.9,1924.3,12.99117]
[1688314759860,37.67552,1924.9,1924.3,12.99117]
[1688314760059,0.00288727,1924.7,1924.3,12.99117]
[1688314761055,5.19541,1924.8,1924.3,12.99117]
[1688314761256,12.98854,1924.8,1924.3,10.39316]
[1688314761696,15.67606184,1924.8,1924.3,5.19647]
[1688314761998,10.39186,1924.6,1924.3,10.39316]
[1688314762813,5.19593,1924.6,1924.3,10.39316]
[1688314762979,0.00287004,1924.5,1924.3,10.39316]
[1688314763181,0.00287004,1924.5,1924.3,5.19647]
[1688314763378,0.00287004,1924.5,1924.3,10.39316]
[1688314763909,0.00287004,1924.5,1924.3,12.9915]
[1688314764117,5.19516,1924.9,1924.3,12.9915]
[1688314764409,10.910196,1924.8,1924.3,12.9915]
[1688314764608,8.19494,1925.0,1924.3,12.9915]
[1688314764811,3.0,1924.9,1924.3,12.9915]
[1688314765021,0.00288727,1924.7,1924.3,10.39316]
[1688314765175,5.19593,1924.6,1924.3,10.39316]
[1688314765525,5.19593,1924.6,1923.9,1.9007]
[1688314765526,2.68752184,1924.5,1923.7,2.0]
[1688314765704,1.891,1924.2,1923.9,5.19759]
[1688314765907,5.19723,1924.1,1923.9,5.19759]
[1688314766107,10.39446,1924.1,1923.5,4.59941]
[1688314766293,10.39446,1924.1,1923.7,5.19818]
[1688314766469,11.882855,1924.1,1923.7,5.19818]
[1688314766677,11.882855,1924.1,1923.7,10.39649]
[1688314766904,14.481465,1924.1,1923.7,10.39649]
[1688314767477,14.481465,1924.1,1923.7,5.19818]
[1688314768216,14.481465,1924.1,1923.7,12.99564]
[1688314768217,0.00289727,1924.0,1923.7,12.99564]
[1688314769120,10.39405,1924.2,1923.7,12.99564]
[1688314769325,1.873,1924.1,1923.4,5.19897]
[1688314769524,12.99448,1923.9,1923.3,10.3984]
[1688314769729,1.299448,1923.8,1923.3,5.19913]
[1688314769926,10.3969,1923.7,1923.3,5.19913]
[1688314770076,10.3969,1923.7,1923.3,10.39852]
[1688314770482,12.2879,1923.7,1923.3,10.39852]
[1688314770709,12.2879,1923.7,1923.3,5.19913]
[1688314770911,13.6466348,1923.7,1923.3,10.39852]
[1688314771411,16.33415664,1923.7,1923.1,2.0]
[1688314771621,16.33415664,1923.7,1923.3,10.39878]
[1688314771622,18.93330664,1923.7,1923.3,10.39878]
[1688314771833,5.19845,1923.7,1923.3,5.19939]
[1688314771982,4.51396,1924.0,1923.3,5.19939]
[1688314771983,0.02038664,1923.6,1923.3,12.99847]
[1688314772325,0.00297635,1923.6,1923.3,12.99847]
[1688314772688,0.00297635,1923.6,1923.3,10.39878]
[1688314772914,0.00297635,1923.6,1923.3,12.99847]
[1688314773296,0.02105827,1923.6,1923.3,12.99847]
[1688314773497,0.00297635,1923.6,1923.3,12.99847]
[1688314773711,0.02146153,1923.6,1923.3,12.99847]
[1688314774027,0.00297635,1923.6,1923.3,12.99847]
[1688314774178,0.00297635,1923.6,1923.3,13.28271321]
[1688314775091,0.02606912,1923.9,1923.3,13.28271321]
[1688314775290,5.22387912,1923.9,1923.3,13.28271321]
[1688314775503,0.02606912,1923.9,1923.3,13.28271321]
[1688314775823,0.02606912,1923.9,1923.3,17.97023505]
[1688314776030,0.00299804,1923.8,1923.5,15.59618]
[1688314776195,0.00299804,1923.8,1923.5,15.61268179]
[1688314776988,5.19751,1924.0,1923.5,15.61268179]
[1688314777443,5.19734,1924.1,1923.5,15.61268179]
[1688314778144,0.00303005,1924.0,1923.5,15.61268179]
[1688314778439,5.20054005,1924.0,1923.5,15.61268179]
[1688314779358,0.00303005,1924.0,1923.5,20.30020363]
[1688314779646,35.75662,1924.4,1923.9,12.99435]
[1688314779802,46.78407,1924.4,1923.9,12.99435]
[1688314780003,0.00296538,1924.3,1923.9,12.99435]
[1688314780322,10.39663538,1924.3,1923.9,12.99435]
[1688314780635,10.39663538,1924.3,1923.9,10.39548]
[1688314780871,0.00296538,1924.3,1923.9,10.39548]
[1688314781149,0.00296538,1924.3,1924.0,2.0]
[1688314781306,0.00296538,1924.3,1924.1,12.99307]
[1688314782003,10.39194,1924.6,1924.1,12.99307]
[1688314782204,5.1959,1924.6,1924.1,12.99307]
[1688314782949,17.084996,1924.6,1924.1,10.39446]
[1688314783115,5.19647,1924.4,1924.1,10.39446]
[1688314783654,10.39553048,1924.5,1924.1,12.99307]
[1688314783953,0.00295048,1924.5,1924.1,12.99307]
[1688314785655,5.19914048,1924.5,1924.1,12.99307]
[1688314785980,6.23570605,1924.5,1924.1,12.99307]
[1688314786133,11.43189605,1924.5,1924.1,10.39446]
[1688314786728,11.43189605,1924.5,1923.8,1.8957]
[1688314786729,14.11941789,1924.5,1923.8,1.8957]
[1688314786924,16.71748789,1924.5,1923.8,10.39605]
[1688314787234,1.41194179,1924.4,1923.8,12.99507]
[1688314787428,10.39373,1924.3,1923.8,12.99507]
[1688314787825,2.86771605,1924.5,1923.8,12.99507]
[1688314788168,13.26039605,1924.5,1923.8,12.99507]
[1688314789164,1.32603961,1924.4,1923.8,12.99507]
[1688314789461,6.52261961,1924.4,1923.8,12.99507]
[1688314790053,6.52261961,1924.4,1923.7,4.61558007]
[1688314790054,5.19718,1924.2,1923.7,5.19818]
[1688314790258,12.99385,1924.0,1923.5,7.19862]
[1688314790474,12.99385,1924.0,1923.5,12.39736]
[1688314791332,12.99385,1924.0,1923.5,10.39736]
[1688314791834,12.99385,1924.0,1923.5,12.99678]
[1688314792062,2.68752184,1923.7,1923.2,10.39908]
[1688314792262,3.74875218,1923.6,1922.7,2.0]
[1688314792468,2.68752184,1923.5,1922.9,13.00112]
[1688314792768,12.99834,1923.4,1922.9,10.40089]
[1688314794479,10.39868,1923.4,1922.9,10.40089]
[1688314794645,13.39755,1923.6,1923.0,0.01650608]
[1688314794967,16.41194706,1923.6,1923.1,12.9993]
[1688314796874,1.9228,1923.9,1923.1,12.9993]
[1688314797044,7.88562184,1923.8,1923.1,13.26703971]
[1688314797765,2.68752184,1923.8,1923.1,13.26703971]
[1688314797967,7.1207,1923.9,1923.2,0.26773971]
[1688314798279,19.26168184,1923.8,1923.1,5.19985]
[1688314798483,19.26168184,1923.8,1922.9,5.20036]
[1688314798984,24.73968184,1923.8,1922.9,5.20036]
[1688314799342,3.0,1923.7,1922.9,10.40083]
[1688314799543,12.9974,1923.5,1922.9,13.00106]
[1688314799744,15.68492184,1923.5,1922.9,13.01756695]
[1688314800691,10.39906,1923.3,1922.9,10.41733695]
[1688314800989,13.08658184,1923.3,1922.9,10.41733695]
[1688314801646,5.199,1923.5,1922.9,13.01756695]
[1688314801846,9.08693584,1923.5,1922.9,13.01756695]
[1688314802049,9.08693584,1923.5,1923.0,2.0]
[1688314802050,0.01330384,1923.5,1923.0,2.0]
[1688314802272,30.56,1923.7,1923.1,15.5994]
[1688314802482,5.19813,1923.8,1923.1,15.5994]
[1688314802687,13.08426184,1923.7,1923.1,12.9995]
[1688314802854,17.56741184,1923.7,1923.1,5.1998]
[1688314803053,10.39814,1923.5,1923.0,5.2]
[1688314803255,13.08566184,1923.5,1923.1,5.19987]
[1688314803470,15.68508184,1923.5,1923.1,5.19987]
[1688314803671,15.68508184,1923.5,1922.9,5.20033]
[1688314803906,15.68508184,1923.5,1922.8,5.20059]
[1688314803907,2.68752184,1923.4,1922.8,5.20059]
[1688314804069,13.26777218,1923.3,1922.8,5.2006]
[1688314804265,15.95529402,1923.3,1922.8,10.40134]
[1688314804790,15.95529402,1923.3,1922.8,13.00171]
[1688314804965,8.15588402,1923.3,1922.8,13.00171]
[1688314805369,0.26875218,1923.3,1922.8,13.00171]
[1688314805764,0.26875218,1923.3,1922.8,13.0182178]
[1688314806005,44.31502118,1923.6,1922.8,13.0182178]
[1688314806206,3.0,1923.5,1922.8,13.0182178]
[1688314806421,8.19897,1923.5,1922.8,13.0182178]
[1688314806571,13.39794,1923.5,1922.8,13.0182178]
[1688314806770,16.08546184,1923.5,1922.8,13.0182178]
[1688314807115,10.39904,1923.3,1922.8,13.0182178]
[1688314808067,5.19943,1923.3,1922.8,13.0182178]
[1688314808272,1.60854618,1923.4,1922.8,13.0182178]
[1688314809398,8.19892,1923.5,1922.8,13.0182178]
[1688314809709,5.68752184,1923.5,1922.8,13.0182178]
[1688314809917,3.0,1923.5,1922.8,13.0182178]
[1688314810212,30.56,1923.6,1922.9,2.0]
[1688314810523,30.56,1923.6,1923.1,12.99977]
[1688314810814,5.19846,1923.7,1923.1,12.99977]
[1688314811016,10.39696,1923.7,1923.1,12.99977]
[1688314815717,11.696559,1923.7,1923.1,12.99977]
[1688314818320,10.39696,1923.7,1923.1,12.99977]
[1688314818721,5.19846,1923.7,1923.1,12.99977]
[1688314819400,5.19819,1923.8,1923.1,12.99977]
[1688314819803,10.39634,1923.8,1923.1,12.99977]
[1688314824030,12.99536,1923.8,1923.1,12.99977]
[1688314824331,3.98705784,1923.7,1923.1,5.19984]
[1688314824525,12.99699,1923.6,1923.1,10.39977]
[1688314825536,15.68451184,1923.6,1923.0,0.01650608]
[1688314825836,15.68451184,1923.6,1922.7,1.92090882]
[1688314825837,4.00152184,1923.5,1922.7,0.40750882]
[1688314826055,5.19985,1923.2,1922.9,5.20031]
[1688314826208,5.19985,1923.2,1922.9,10.40057]
[1688314826391,5.19985,1923.2,1922.9,13.0008]
[1688314826815,10.3997,1923.2,1922.9,10.40057]
[1688314827020,5.20026,1923.0,1922.7,5.20088]
[1688314827193,5.20026,1923.0,1922.7,10.40189]
[1688314827603,6.24004,1923.1,1922.7,13.00239]
[1688314827934,1.03997,1923.1,1922.7,13.00239]
[1688314828142,6.91336218,1923.4,1922.7,13.00239]
[1688314828469,2.68752184,1923.3,1922.7,13.00239]
[1688314829115,5.59936218,1923.4,1922.7,13.00239]
[1688314829429,13.48615402,1923.4,1922.7,13.00239]
[1688314829750,5.19979,1923.2,1922.7,13.00239]
[1688314829929,0.519979,1923.1,1922.7,10.40189]
[1688314830092,5.719999,1923.1,1922.7,13.00239]
[1688314830427,0.519979,1923.1,1922.7,13.00239]
[1688314830629,10.39962,1923.2,1922.7,13.00239]
[1688314831133,13.08714184,1923.2,1922.7,13.00239]
[1688314831704,7.88731184,1923.2,1922.7,13.00239]
[1688314831935,2.68752184,1923.2,1922.7,13.00239]
[1688314832234,5.39479876,1923.5,1922.8,1.3405078]
[1688314832235,0.00391584,1923.1,1922.8,1.3405078]
[1688314832409,0.00391584,1923.1,1923.0,13.00045]
[1688314833140,13.08595184,1923.4,1923.0,13.00045]
[1688314833684,7.88665184,1923.4,1923.0,13.00045]
[1688314833888,13.08591184,1923.4,1923.0,13.00045]
[1688314834184,11.71163069,1923.3,1923.0,10.40036]
[1688314834343,14.39915253,1923.3,1923.0,10.40036]
[1688314835515,14.39915253,1923.3,1922.6,5.9561149]
[1688314835516,13.08700184,1923.2,1922.6,5.9561149]
[1688314835655,13.08700184,1923.2,1922.8,5.20053]
[1688314835858,1.30870018,1923.1,1922.8,5.20053]
[1688314836187,2.68752184,1923.0,1922.6,10.40229]
[1688314836507,7.88789184,1923.0,1922.7,10.40201]
[1688314836665,7.88789184,1923.0,1922.7,5.201]
[1688314836666,13.08827184,1923.0,1922.7,5.201]
[1688314837082,0.00387844,1922.9,1922.7,5.201]
[1688314837298,2.69140028,1922.9,1922.7,10.40201]
[1688314837523,3.48057731,1922.9,1922.7,10.40201]
[1688314837901,2.69140028,1922.9,1922.7,10.40201]
[1688314838098,2.69140028,1922.9,1922.7,5.201]
[1688314838465,7.89188028,1922.9,1922.6,10.40228]
[1688314839269,2.69140028,1922.9,1922.6,13.00292]
[1688314840706,2.69140028,1922.9,1922.6,5.20112]
[1688314840917,0.26914003,1922.8,1922.6,5.20112]
[1688314841372,2.95666187,1922.8,1922.5,5.2014]
[1688314841571,2.95666187,1922.8,1922.5,10.40285]
[1688314841572,8.15743187,1922.8,1922.5,10.40285]
[1688314841768,2.95666187,1922.8,1922.5,10.40285]
[1688314841997,0.00386133,1922.7,1922.5,13.00363]
[1688314842605,0.00386133,1922.7,1922.5,10.40285]
[1688314843711,0.00386133,1922.7,1922.5,13.00363]
[1688314844735,0.27299965,1922.7,1922.2,1.9013501]
[1688314844945,5.47400965,1922.7,1922.3,6.10590689]
[1688314845244,10.67501965,1922.7,1922.3,5.20201]
[1688314845541,5.47400965,1922.7,1922.3,5.20201]
[1688314845727,0.54740097,1922.6,1922.3,5.20201]
[1688314845898,0.54740097,1922.6,1922.3,10.40411]
[1688314846235,0.55125375,1922.6,1922.3,10.40411]
[1688314846532,0.00385278,1922.6,1922.3,13.00516]
[1688314847140,13.08935184,1922.8,1922.3,13.00516]
[1688314847642,2.68752184,1922.7,1922.3,10.40411]
[1688314847843,5.20134,1922.6,1922.3,10.40411]
[1688314848064,5.20134,1922.6,1922.0,1.364488]
[1688314848065,2.68752184,1922.5,1922.0,1.364488]
[1688314848205,5.721704,1922.5,1922.3,5.2021]
[1688314848728,5.20521336,1922.6,1922.3,13.00525]
[1688314848729,0.00387336,1922.6,1922.3,13.00525]
[1688314849137,5.20082,1922.8,1922.3,13.00525]
[1688314849318,13.08926184,1922.8,1922.3,13.00525]
[1688314850142,5.204978,1922.7,1922.3,13.00525]
[1688314851234,5.204978,1922.7,1922.0,10.40557]
[1688314851235,13.00461,1922.4,1922.0,10.40557]
[1688314851910,10.4037,1922.4,1922.0,13.00702]
[1688314852207,0.00387453,1922.3,1922.0,13.00702]
[1688314853037,10.40349,1922.5,1922.0,13.00702]
[1688314853231,13.09101184,1922.5,1922.0,13.00702]
[1688314853608,10.40422,1922.3,1922.0,5.20277]
[1688314853878,1.325,1922.1,1921.7,5.20355]
[1688314854079,3.00386598,1922.2,1921.8,7.80516]
[1688314854288,5.20271,1922.1,1921.8,5.20344]
[1688314854490,5.20271,1922.1,1921.7,10.40718]
[1688314854947,10.40542,1922.1,1921.7,10.40718]
[1688314855152,0.00386497,1922.0,1921.7,10.40718]
[1688314855364,5.21556327,1922.0,1921.7,10.40718]
[1688314855569,5.20677497,1922.0,1921.7,10.40718]
[1688314856119,5.20677497,1922.0,1921.7,5.20367]
[1688314856120,14.13815531,1922.0,1921.7,5.20367]
[1688314856437,14.13815531,1922.0,1921.6,5.20384]
[1688314856739,2.68752184,1921.9,1921.6,10.40782]
[1688314856963,13.09418184,1921.9,1921.6,10.40782]
[1688314857150,13.09805973,1921.9,1921.6,10.40782]
[1688314857359,0.00387789,1921.9,1921.6,10.40782]
[1688314858184,10.4057,1922.1,1921.6,10.40782]
[1688314858478,5.2028,1922.1,1921.6,10.40782]
[1688314858853,2.68752184,1922.0,1921.6,13.00981]
[1688314859035,7.89433439,1922.0,1921.6,13.00981]
[1688314859237,0.78943344,1921.9,1921.6,13.00981]
[1688314859847,13.09742439,1922.0,1921.6,13.00981]
[1688314860052,0.00388544,1921.8,1921.7,4.00752184]
[1688314860285,0.01139,1922.2,1921.8,2.0]
[1688314860447,6.25490582,1923.0,1922.0,15.60864]
[1688314860646,15.40909,1922.9,1922.0,15.60864]
[1688314860840,1.540909,1922.8,1922.0,15.60864]
[1688314861157,0.00360088,1922.8,1922.5,1.32]
[1688314861353,0.00360088,1922.8,1922.2,2.0]
[1688314861354,0.00360088,1922.8,1922.6,14.3232]
[1688314862139,5.19998,1923.1,1922.6,14.3232]
[1688314862367,10.40008,1923.1,1922.6,13.0032]
[1688314863283,0.00347944,1923.0,1922.6,13.0032]
[1688314863454,5.20382944,1923.0,1922.6,13.0032]
[1688314863682,6.24421038,1923.0,1922.6,13.0032]
[1688314863883,14.04466038,1923.0,1922.0,7.20266]
[1688314864101,14.04466038,1923.0,1922.4,10.40347]
[1688314864273,0.48,1922.9,1922.4,10.40347]
[1688314864469,10.40172,1922.8,1922.4,10.40347]
[1688314864673,10.40172,1922.8,1922.4,13.00438]
[1688314864674,6.549039,1922.8,1922.4,13.00438]
[1688314865119,0.00343366,1922.7,1922.4,13.00438]
[1688314865678,2.6909555,1922.7,1922.4,13.00438]
[1688314868042,2.68752184,1922.6,1922.3,5.20196]
[1688314868188,7.88885184,1922.6,1922.3,5.20209]
[1688314868387,7.88885184,1922.6,1922.3,10.40419]
[1688314868388,9.19815039,1922.6,1922.3,10.40419]
[1688314869227,0.00343088,1922.5,1922.3,10.40419]
[1688314871403,5.20499088,1922.5,1922.3,10.40419]
[1688314871625,5.20499088,1922.5,1922.2,5.20227]
[1688314871817,5.20499088,1922.5,1922.2,10.40464]
[1688314873841,5.20499088,1922.5,1922.2,5.20227]
[1688314874039,0.52049909,1922.4,1922.1,5.2025]
[1688314874262,5.72249909,1922.4,1922.0,5.21921467]
[1688314874407,5.72249909,1922.4,1922.1,10.40526]
[1688314875139,0.00341706,1922.3,1922.1,10.40526]
[1688314877038,1.09620867,1922.3,1922.1,10.40526]
[1688314877444,1.09620867,1922.3,1922.1,5.20262]
[1688314877739,1.09620867,1922.3,1922.0,5.2029]
[1688314877740,16.78903051,1922.3,1922.0,5.2029]
[1688314878116,16.78903051,1922.3,1922.0,10.40581]
[1688314878316,6.88129305,1922.2,1922.0,10.40581]
[1688314879010,0.00339995,1922.1,1922.0,10.40581]
[1688314879205,0.00339995,1922.1,1922.0,5.2029]
[1688314879743,0.00339995,1922.1,1922.0,10.40581]
[1688314880249,0.00339995,1922.1,1922.0,14.32726]
[1688314880552,37.67325,1922.8,1922.4,15.60548]
[1688314880553,30.56,1922.8,1922.4,15.60548]
[1688314880731,30.56,1923.0,1922.4,15.60548]
[1688314880908,10.40028,1923.1,1922.5,1.32]
[1688314881106,0.00317706,1922.7,1922.6,13.00267]
[1688314881942,0.00317706,1922.7,1922.6,14.32767]
[1688314882152,30.56,1923.3,1922.6,14.34417952]
[1688314882332,30.56,1923.3,1922.6,13.01917952]
[1688314882540,30.56,1923.3,1922.6,15.70670136]
[1688314882913,30.56,1923.3,1922.6,13.01917952]
[1688314883119,0.00324617,1923.2,1922.7,1.325]
[1688314883354,0.00324617,1923.2,1922.8,13.00152]
[1688314884142,5.20302617,1923.2,1922.8,13.00152]
[1688314885434,5.20302617,1923.2,1922.8,14.32652]
[1688314885746,5.20302617,1923.2,1922.8,13.00152]
[1688314885926,6.47123493,1923.2,1922.8,13.00152]
[1688314888828,6.47123493,1923.2,1922.8,10.40122]
[1688314889831,10.40280617,1923.2,1922.8,10.40122]
[1688314891060,10.40280617,1923.2,1922.6,2.61703952]
[1688314891061,2.68752184,1923.1,1922.6,2.61703952]
[1688314891394,10.40064,1923.0,1922.7,10.40184]
[1688314891554,6.76913718,1923.0,1922.7,10.40184]
[1688314892105,0.00320689,1922.9,1922.7,10.40184]
[1688314892251,0.00320689,1922.9,1922.7,13.00234]
[1688314892958,5.19969,1923.2,1922.7,13.00234]
[1688314894278,10.39938,1923.2,1922.7,13.00234]
[1688314894594,11.439318,1923.2,1922.7,13.00234]
[1688314896158,0.00322398,1923.1,1922.8,0.00571711]
[1688314896360,5.20316398,1923.1,1922.9,5.20047]
[1688314896883,5.20316398,1923.1,1922.9,10.40094]
[1688314901523,5.20316398,1923.1,1923.0,0.00540436]
[1688314901694,14.23490502,1923.1,1923.0,0.00540436]
[1688314901887,14.23490502,1923.1,1922.8,10.40118]
[1688314902082,14.23490502,1923.1,1922.9,0.00673744]
[1688314902385,14.23490502,1923.1,1922.9,5.20042]
[1688314903229,2.68752184,1923.0,1922.6,5.2011]
[1688314903530,14.51174234,1923.0,1922.7,5.20093]
[1688314904221,5.20371906,1922.9,1922.7,5.20093]
[1688314904410,5.20371906,1922.9,1922.6,10.40229]
[1688314904587,0.52037191,1922.8,1922.6,10.40229]
[1688314905124,0.00323805,1922.7,1922.6,10.40229]
[1688314905696,0.00323805,1922.7,1922.4,2.60088]
[1688314905892,0.00323805,1922.7,1922.6,5.20128]
[1688314907827,0.00323805,1922.7,1922.6,10.40256]
[1688314910347,0.00323805,1922.7,1922.6,5.20128]
[1688314910725,0.00323805,1922.7,1922.6,10.40256]
[1688314911645,0.00323805,1922.7,1922.6,5.20128]
[1688314911944,0.00323805,1922.7,1922.6,10.40256]
[1688314912706,0.00323805,1922.7,1922.6,13.9512]
[1688314913143,11.5446492,1923.1,1922.6,13.9512]
[1688314913411,11.50212781,1923.1,1922.6,13.9512]
[1688314913835,6.30200781,1923.1,1922.6,13.9512]
[1688314914046,0.00327442,1923.0,1922.6,13.9512]
[1688314916495,2.68752184,1922.9,1922.3,1.5242]
[1688314916706,5.46961218,1922.8,1922.5,10.40301]
[1688314916999,5.46961218,1922.8,1922.5,5.20145]
[1688314917194,10.67374559,1922.8,1922.5,10.40301]
[1688314917697,10.67374559,1922.8,1922.5,5.20145]
[1688314917909,1.06737456,1922.7,1922.5,5.20145]
[1688314918078,1.06737456,1922.7,1922.5,10.40301]
[1688314918079,6.26846456,1922.7,1922.5,10.40301]
[1688314918598,6.26846456,1922.7,1922.5,5.20145]
[1688314919002,0.00327241,1922.6,1922.5,5.20145]
[1688314919400,11.03300611,1922.6,1922.2,7.12406]
[1688314919603,13.63364611,1922.6,1922.3,0.00584863]
[1688314919803,13.63364611,1922.6,1922.2,5.20226]
[1688314919973,6.56509461,1922.5,1922.2,5.20226]
[1688314920194,6.56509461,1922.5,1922.2,10.40463]
[1688314920395,0.00327241,1922.6,1922.2,10.40463]
[1688314920628,0.00327241,1922.6,1922.3,0.948]
[1688314920825,0.00327241,1922.6,1922.4,13.00457]
[1688314921189,10.40193,1922.8,1922.4,13.00457]
[1688314922093,0.00327559,1922.7,1922.4,13.00457]
[1688314922327,5.20438559,1922.7,1922.4,13.00457]
[1688314924830,0.00327559,1922.7,1922.4,13.00457]
[1688314925705,5.20430559,1922.7,1922.4,13.00457]
[1688314925904,6.24482815,1922.7,1922.4,13.00457]
[1688314926299,5.20430559,1922.7,1922.4,13.00457]
[1688314929162,5.20430559,1922.7,1922.4,13.94857]
[1688314929816,0.00327559,1922.7,1922.4,13.94857]
[1688314930211,0.00327559,1922.7,1922.4,13.00457]
[1688314934259,8.97386157,1922.9,1922.4,13.00457]
[1688314934472,10.00181014,1922.9,1922.4,13.00457]
[1688314935023,0.00327341,1922.8,1922.4,13.00457]
[1688314936155,1.49765682,1923.1,1922.7,13.0022]
[1688314936387,7.18517866,1923.1,1922.7,13.0022]
[1688314936528,0.71851787,1923.0,1922.7,13.0022]
[1688314937128,0.00316062,1922.9,1922.7,13.0022]
[1688314938170,12.38519866,1923.1,1922.7,13.0022]
[1688314938744,7.18517866,1923.1,1922.7,13.0022]
[1688314939075,0.00316917,1923.0,1922.7,13.0022]
[1688314940766,0.00316917,1923.0,1922.8,0.948]
[1688314941032,0.00316917,1923.0,1922.9,13.94717]
[1688314941234,13.09109101,1923.0,1922.9,0.00774151]
[1688314941431,7.89089101,1923.0,1922.8,5.20062]
[1688314941736,0.7890891,1922.9,1922.8,5.20062]
[1688314941930,0.7890891,1922.9,1922.8,5.20806527]
[1688314942175,0.79224972,1922.9,1922.8,5.20062]
[1688314942471,0.00316062,1922.9,1922.8,5.20824638]
[1688314943782,2.69068246,1922.9,1922.8,0.00762638]
[1688314943939,2.69068246,1922.9,1922.7,0.00762638]
[1688314943940,7.89115246,1922.9,1922.7,0.00762638]
[1688314944135,8.97688219,1922.9,1922.5,10.40285]
[1688314944339,0.89768822,1922.8,1922.5,10.40285]
[1688314945070,0.00314353,1922.7,1922.5,10.40285]
[1688314946278,0.00314353,1922.7,1922.3,5.20189]
[1688314946478,0.00314353,1922.7,1922.1,2.5797]
[1688314946479,2.69066537,1922.7,1922.1,2.5797]
[1688314946637,2.69066537,1922.7,1922.2,5.20225]
[1688314946638,13.09268537,1922.7,1922.2,5.20225]
[1688314946839,13.09268537,1922.7,1922.2,10.40445]
[1688314946840,6.51060854,1922.6,1922.2,10.40445]
[1688314947067,1.31240888,1922.6,1922.2,13.00563]
[1688314947374,1.31240888,1922.6,1922.2,10.40445]
[1688314947566,1.31240888,1922.6,1922.2,13.00563]
[1688314948050,6.51375888,1922.6,1922.2,13.00563]
[1688314949976,0.00314034,1922.6,1922.2,13.00563]
[1688314951137,14.17545157,1922.7,1922.2,13.00563]
[1688314951381,13.08972184,1922.7,1922.2,13.00563]
[1688314952037,0.00314034,1922.6,1922.2,13.00563]
[1688314952477,0.00314034,1922.6,1922.3,0.948]
[1688314952679,0.00314034,1922.6,1922.4,10.40366]
[1688314953083,7.18426795,1922.8,1922.4,10.40366]